bitfinex-derivatives/quotes_ETHF0:USTF0_20250421
["timestamp","ask_amount","ask_price","bid_price","bid_amount"]
[1745244246189,6.07e-06,1614.1,1614.0,52.93973]
[1745244246390,5.984,1614.6,1614.5,1.23874]
[1745244246590,14.21751772,1614.7,1614.6,1.23867]
[1745244246889,18.41272071,1614.7,1614.6,1.23867]
[1745244247190,18.41272071,1614.7,1614.6,42.03867]
[1745244247488,14.21751772,1614.7,1614.6,50.24647]
[1745244247684,0.00930607,1614.8,1614.7,1.23859]
[1745244247886,3.0116,1615.2,1615.1,1.23828]
[1745244248192,14.21751772,1615.3,1615.2,1.23821]
[1745244248898,14.21751772,1615.3,1615.2,4.16051]
[1745244249190,14.21751772,1615.3,1615.2,6.98791]
[1745244249792,18.41272071,1615.3,1615.2,6.98791]
[1745244250389,14.21751772,1615.3,1615.2,6.98791]
[1745244250982,14.21751772,1615.3,1615.2,47.78791]
[1745244251199,3.2078,1615.7,1615.5,1.23794]
[1745244251386,4.19520299,1615.6,1615.5,1.23794]
[1745244251602,4.19520299,1615.6,1615.4,3.02240607]
[1745244251789,4.19520299,1615.5,1615.4,4.26041607]
[1745244252092,4.19520299,1615.5,1615.4,4.26045607]
[1745244252393,2.9642,1615.9,1615.7,1.2378]
[1745244252394,6.172,1615.9,1615.7,1.2378]
[1745244252588,7.19190299,1615.8,1615.6,1.23785]
[1745244252794,7.19190299,1615.8,1615.4,3.02240607]
[1745244252994,4.19520299,1615.7,1615.6,1.2379]
[1745244253288,7.40300299,1615.7,1615.5,1.23793]
[1745244253595,7.16690299,1615.6,1615.5,1.23798]
[1745244253799,7.16690299,1615.6,1615.5,4.13738]
[1745244254186,6.172,1615.9,1615.7,1.23779]
[1745244254486,7.16690299,1615.8,1615.7,1.23779]
[1745244255086,6.172,1615.9,1615.8,1.23775]
[1745244255492,13.33890299,1615.9,1615.8,1.23775]
[1745244255697,10.13110299,1615.9,1615.8,1.23775]
[1745244255995,7.16690299,1615.9,1615.8,1.23775]
[1745244256592,4.19520299,1615.9,1615.8,1.23775]
[1745244256792,6.2776,1616.1,1616.0,1.23759]
[1745244257296,10.47280299,1616.1,1616.0,1.23759]
[1745244257494,5.984,1616.3,1616.2,1.23744]
[1745244257692,10.17920299,1616.3,1616.2,1.23744]
[1745244258300,10.17920299,1616.3,1616.1,1.23749]
[1745244258496,4.19520299,1616.2,1616.1,1.23749]
[1745244259985,7.03950299,1616.2,1616.1,1.23749]
[1745244260185,4.19520299,1616.2,1616.1,42.03749]
[1745244262499,8.8283,1616.3,1616.2,1.23744]
[1745244262802,7.03950299,1616.3,1616.2,1.23744]
[1745244263199,4.19520299,1616.3,1616.2,42.03744]
[1745244264301,4.19520299,1616.3,1616.2,45.24524]
[1745244264895,4.19520299,1616.3,1616.2,42.03744]
[1745244266798,7.17450299,1616.3,1616.2,42.03744]
[1745244267500,2.9576,1616.4,1616.3,1.23736]
[1745244267703,9.1918,1616.6,1616.5,1.23721]
[1745244267704,12.1711,1616.6,1616.5,1.23721]
[1745244268106,12.1711,1616.6,1616.5,42.03721]
[1745244268299,12.1711,1616.6,1616.5,40.8]
[1745244268802,12.1711,1616.6,1616.4,0.00930607]
[1745244268803,17.1711,1616.6,1616.4,0.00930607]
[1745244269000,10.22771,1616.5,1616.4,0.00930607]
[1745244269302,11.937,1616.5,1616.4,0.00930607]
[1745244269503,16.937,1616.5,1616.4,1.24659607]
[1745244270003,11.937,1616.5,1616.4,1.24659607]
[1745244270806,16.937,1616.5,1616.4,1.24659607]
[1745244271506,18.17421,1616.5,1616.4,1.24659607]
[1745244271705,1.23735,1616.4,1616.3,1.23735]
[1745244272007,7.26554,1616.4,1616.3,1.23736]
[1745244272304,12.26554,1616.4,1616.3,1.23736]
[1745244272501,17.0122,1616.4,1616.0,3.09399]
[1745244272694,3.2078,1616.1,1616.0,1.23759]
[1745244272899,3.2078,1616.1,1616.0,1.24689607]
[1745244272900,4.44532,1616.1,1616.0,1.24689607]
[1745244273207,4.44532,1616.1,1616.0,42.04689607]
[1745244273705,10.32872,1616.1,1616.0,42.04689607]
[1745244273908,10.32872,1616.1,1616.0,40.80930607]
[1745244274209,9.0912,1616.1,1616.0,42.04689607]
[1745244274412,5.8834,1616.1,1616.0,42.04689607]
[1745244275708,5.8834,1616.1,1616.0,40.80930607]
[1745244276001,7.12092,1616.1,1616.0,40.80930607]
[1745244276304,8.97724,1616.1,1615.7,4.23655]
[1745244276513,1.23775,1615.8,1615.7,1.23775]
[1745244276710,1.23775,1615.8,1615.7,40.8]
[1745244276915,4.44555,1615.8,1615.7,40.8]
[1745244277111,4.44555,1615.8,1615.4,4.825]
[1745244277112,1.23798,1615.5,1615.4,6.06299]
[1745244277405,1.23809,1615.4,1615.3,1.2381]
[1745244277606,1.23813,1615.3,1615.2,4.22785]
[1745244277809,1.23813,1615.3,1615.2,1.24745607]
[1745244278309,1.23813,1615.3,1615.2,42.04745607]
[1745244278505,4.31051,1615.4,1615.3,1.23813]
[1745244279008,4.31051,1615.4,1615.2,43.79900607]
[1745244279009,3.0724,1615.4,1615.2,43.79900607]
[1745244279201,3.0724,1615.4,1615.3,1.23813]
[1745244281512,3.21710607,1615.5,1615.4,1.23805]
[1745244281808,0.00930607,1615.5,1615.4,1.23805]
[1745244282513,0.00930607,1615.5,1615.4,4.21175]
[1745244283016,0.00930607,1615.5,1615.4,1.23805]
[1745244283310,3.08910607,1615.5,1615.4,4.34695]
[1745244283513,0.00930607,1615.5,1615.4,4.34695]
[1745244284510,3.08910607,1615.5,1615.4,4.34695]
[1745244285309,0.00930607,1615.5,1615.4,4.34695]
[1745244286813,0.00930607,1615.5,1615.4,9.17395]
[1745244288206,0.00930607,1615.5,1615.4,4.34695]
[1745244290511,12.4995,1616.0,1615.9,1.23767]
[1745244290717,13.73709,1616.0,1615.9,1.23767]
[1745244291915,13.73709,1616.0,1615.8,1.23769]
[1745244292119,13.73709,1616.0,1615.7,3.2271]
[1745244292312,13.73709,1616.0,1615.9,1.23767]
[1745244292519,13.73709,1616.0,1615.8,1.23768]
[1745244292915,13.73709,1616.0,1615.8,1.2377]
[1745244293111,12.4995,1616.0,1615.7,3.2271]
[1745244293318,1.23781,1615.8,1615.6,4.44566]
[1745244293516,3.2384,1615.7,1615.6,4.44566]
[1745244293721,3.2384,1615.7,1615.6,7.61566]
[1745244294125,12.4302,1616.0,1615.6,6.3778]
[1745244294316,3.2384,1615.9,1615.7,4.40781]
[1745244294811,4.47609,1615.9,1615.8,3.17]
[1745244295014,3.2384,1615.9,1615.7,1.23781]
[1745244295216,3.0843,1615.8,1615.7,4.58811]
[1745244295523,9.1918,1616.0,1615.8,1.23772]
[1745244295816,9.1918,1616.0,1615.8,4.58802]
[1745244295817,4.32197,1615.9,1615.8,4.58802]
[1745244296023,3.0843,1615.9,1615.6,1.23784]
[1745244296222,7.52985,1615.8,1615.7,1.23782]
[1745244296425,1.23782,1615.7,1615.6,3.3503]
[1745244296633,3.0843,1615.7,1615.6,4.58816]
[1745244296822,3.2078,1615.8,1615.7,1.23782]
[1745244297328,4.44555,1615.8,1615.7,1.23782]
[1745244297511,7.52985,1615.8,1615.7,1.23782]
[1745244297914,1.23782,1615.7,1615.6,4.58815]
[1745244298213,1.23782,1615.7,1615.6,3.3503]
[1745244298520,4.48622,1615.7,1615.6,4.5882]
[1745244299022,4.48622,1615.7,1615.6,3.3503]
[1745244299524,4.48622,1615.7,1615.6,4.5882]
[1745244299822,4.48622,1615.7,1615.6,3.3503]
[1745244300327,7.52732,1615.7,1615.6,3.3503]
[1745244300528,4.44559,1615.8,1615.7,1.23782]
[1745244301123,4.44558,1615.8,1615.7,1.23782]
[1745244301432,1.23782,1615.7,1615.6,3.3503]
[1745244301630,1.23798,1615.5,1615.4,9.12439]
[1745244302125,4.44578,1615.6,1615.5,1.23798]
[1745244302827,4.44578,1615.6,1615.5,3.2008]
[1745244303027,1.2381,1615.4,1615.3,4.719]
[1745244303222,6.2756,1615.6,1615.3,7.9198]
[1745244303421,5.984,1615.8,1615.7,1.23782]
[1745244303422,9.1918,1615.8,1615.7,1.23782]
[1745244303825,5.984,1615.8,1615.7,1.23782]
[1745244304028,5.984,1615.8,1615.7,4.43862]
[1745244305630,7.22175,1615.8,1615.7,3.2008]
[1745244305827,5.984,1615.8,1615.7,3.2008]
[1745244306130,7.22175,1615.8,1615.7,3.2008]
[1745244306330,10.51655,1615.8,1615.7,3.2008]
[1745244306735,4.53255,1615.8,1615.7,3.2008]
[1745244307435,4.53255,1615.8,1615.6,1.23788]
[1745244307436,3.2948,1615.8,1615.4,3.2078]
[1745244307637,3.2078,1615.6,1615.4,3.2494]
[1745244307934,3.2078,1615.6,1615.5,1.23798]
[1745244308235,1.23813,1615.3,1615.2,40.80930607]
[1745244308933,7.74813,1615.3,1615.2,40.80930607]
[1745244309228,13.73213,1615.3,1614.8,8.12530673]
[1745244309429,4.44624,1614.9,1614.8,8.12530673]
[1745244309835,4.44624,1614.9,1614.8,50.16381673]
[1745244310033,12.2539,1615.1,1615.0,1.23836]
[1745244310337,9.1918,1615.1,1615.0,1.23836]
[1745244310636,9.1918,1615.1,1614.9,3.25870607]
[1745244310833,3.2115,1615.0,1614.9,4.49711607]
[1745244311222,4.44986,1615.0,1614.9,4.49711607]
[1745244311429,4.44986,1615.0,1614.9,0.00930607]
[1745244311641,7.51196,1615.0,1614.9,0.00930607]
[1745244313232,7.51196,1615.0,1614.7,1.23853]
[1745244313233,1.23866,1614.7,1614.5,3.2855]
[1745244313433,1.23864,1614.7,1614.5,4.52417]
[1745244313637,3.1233,1614.6,1614.5,4.52417]
[1745244313827,4.36197,1614.6,1614.5,45.32417]
[1745244314032,3.1233,1614.6,1614.5,44.0855]
[1745244314233,3.1233,1614.6,1614.5,45.32424]
[1745244314536,1.23874,1614.5,1614.4,0.00930607]
[1745244314838,4.50004,1614.5,1614.4,0.00930607]
[1745244315039,7.62334,1614.5,1614.4,0.00930607]
[1745244315642,7.62334,1614.5,1614.4,40.80930607]
[1745244316639,7.62334,1614.5,1614.4,0.00930607]
[1745244317443,7.62334,1614.5,1614.4,1.24812607]
[1745244317646,7.62334,1614.5,1614.4,4.64272607]
[1745244317842,7.62334,1614.5,1614.4,3.40390607]
[1745244318443,7.62334,1614.5,1614.4,4.64272607]
[1745244319842,1.23874,1614.5,1614.4,4.64272607]
[1745244320243,7.9094,1614.6,1614.5,1.23874]
[1745244320443,7.9094,1614.6,1614.5,4.54334]
[1745244321843,6.6707,1614.6,1614.5,4.54334]
[1745244322044,7.90937,1614.6,1614.5,4.54334]
[1745244323243,7.90937,1614.6,1614.5,3.3046]
[1745244323546,1.23874,1614.5,1614.4,1.24807607]
[1745244323745,1.23874,1614.5,1614.4,4.71477607]
[1745244323941,1.23874,1614.5,1614.4,0.00930607]
[1745244324150,4.37264,1614.5,1614.4,0.00930607]
[1745244326350,4.37264,1614.5,1614.4,3.42950607]
[1745244327143,4.37264,1614.5,1614.4,0.00930607]
[1745244328344,8.98464,1614.5,1614.4,0.00930607]
[1745244328942,14.96864,1614.5,1614.4,0.00930607]
[1745244329549,19.96864,1614.5,1614.4,0.00930607]
[1745244329849,20.07378309,1614.5,1614.4,0.00930607]
[1745244330051,15.07378309,1614.5,1614.4,0.00930607]
[1745244331450,15.07378638,1614.5,1614.4,0.00930607]
[1745244332247,18.28158638,1614.5,1614.4,0.00930607]
[1745244332452,18.17644,1614.5,1614.4,0.00930607]
[1745244332747,13.7299,1614.5,1614.4,1.24812607]
[1745244333050,6.3417,1614.5,1614.4,1.24812607]
[1745244333944,7.58044,1614.5,1614.4,1.24812607]
[1745244334454,7.58044,1614.5,1614.4,0.00930607]
[1745244336053,13.56444,1614.5,1614.4,0.00930607]
[1745244336444,13.66958443,1614.5,1614.4,0.00930607]
[1745244336839,13.56444,1614.5,1614.4,0.00930607]
[1745244337044,18.66958442,1614.5,1614.4,6.07e-06]
[1745244337244,18.66957829,1614.5,1614.4,6.07e-06]
[1745244337451,13.66957829,1614.5,1614.4,6.07e-06]
[1745244337846,13.56444,1614.5,1614.4,6.07e-06]
[1745244342955,10.43039,1614.7,1614.6,1.23867]
[1745244343255,1.23867,1614.6,1614.5,4.61869]
[1745244343447,13.68737,1614.7,1614.6,1.23867]
[1745244343643,13.68737,1614.7,1614.6,4.61867]
[1745244343853,13.68737,1614.7,1614.6,3.38]
[1745244344049,10.43047,1614.7,1614.6,4.61867]
[1745244344455,10.43047,1614.7,1614.6,3.38]
[1745244344749,10.43047,1614.7,1614.6,4.61867]
[1745244345744,10.43047,1614.7,1614.6,3.38]
[1745244346055,10.43047,1614.7,1614.6,4.61867]
[1745244346553,3.2078,1614.7,1614.6,9.61867]
[1745244346855,0.00930607,1615.2,1615.0,1.23836]
[1745244346856,5.984,1615.1,1615.0,1.23836]
[1745244347045,3.21710607,1615.2,1614.9,9.9092]
[1745244347245,3.2078,1615.1,1615.0,3.099]
[1745244347443,0.00930607,1615.2,1615.1,1.23828]
[1745244347444,1.24754607,1615.2,1615.1,1.23828]
[1745244347643,1.23828,1615.1,1615.0,4.3373]
[1745244348141,1.24755607,1615.2,1615.1,1.23828]
[1745244348353,1.24755607,1615.2,1615.1,4.33728]
[1745244348551,1.24755607,1615.2,1615.1,3.099]
[1745244348752,4.34995607,1615.2,1615.1,3.099]
[1745244349553,1.24755607,1615.2,1615.1,4.33728]
[1745244350554,0.00930607,1615.2,1615.1,4.33728]
[1745244353154,7.70679,1615.6,1615.1,4.33728]
[1745244353155,11.83395,1615.6,1615.2,3.09547]
[1745244353458,7.22195,1615.6,1615.4,1.23802]
[1745244353652,10.55225,1615.6,1615.5,3.3469]
[1745244354056,7.22195,1615.6,1615.5,3.3469]
[1745244354846,10.55225,1615.6,1615.5,3.3469]
[1745244355860,10.55225,1615.6,1615.5,4.58488]
[1745244356059,10.55225,1615.6,1615.5,3.3469]
[1745244357061,7.22195,1615.6,1615.5,3.3469]
[1745244357251,7.22195,1615.6,1615.5,4.58488]
[1745244357453,3.21710607,1615.7,1615.6,1.2379]
[1745244357651,3.21710607,1615.7,1615.6,4.4369]
[1745244357852,4.45492607,1615.7,1615.6,3.199]
[1745244358361,3.21710607,1615.7,1615.4,1.24728607]
[1745244358553,4.36873,1615.6,1615.5,3.199]
[1745244359253,4.36873,1615.6,1615.5,4.43698]
[1745244359453,1.2379,1615.6,1615.5,4.43698]
[1745244359754,11.17802607,1615.7,1615.5,4.43692]
[1745244359957,11.17802607,1615.7,1615.6,3.3075]
[1745244360157,14.39002607,1615.7,1615.6,3.3075]
[1745244360864,1.23798,1615.5,1615.4,0.00930607]
[1745244361158,4.44578,1615.5,1615.4,0.00930607]
[1745244361761,4.44578,1615.5,1615.4,3.31680607]
[1745244363862,4.44578,1615.5,1615.4,0.00930607]
[1745244364261,10.42978,1615.5,1615.4,0.00930607]
[1745244364569,1.23828,1615.1,1615.0,3.2078]
[1745244364761,3.09558,1615.2,1614.8,3.2847]
[1745244364964,3.1765,1615.1,1615.0,1.23836]
[1745244365275,1.2384,1615.0,1614.9,1.23842]
[1745244365468,1.23839,1615.0,1614.8,3.2847]
[1745244365766,1.23839,1615.0,1614.9,40.8]
[1745244365970,1.23839,1615.0,1614.9,42.03844]
[1745244366168,1.23839,1615.0,1614.9,40.8]
[1745244366369,1.23839,1615.0,1614.9,42.03844]
[1745244366667,7.62262,1615.1,1615.0,1.23836]
[1745244366864,1.23836,1615.0,1614.9,40.8]
[1745244367069,4.48936,1615.0,1614.9,40.8]
[1745244367261,1.23844,1614.9,1614.8,3.0829]
[1745244367462,7.69724,1614.9,1614.8,3.0829]
[1745244367661,1.23851,1614.8,1614.7,40.80930607]
[1745244367864,6.4773,1614.9,1614.7,40.80930607]
[1745244368062,6.4773,1614.9,1614.8,4.32141]
[1745244368063,10.92355,1614.9,1614.8,4.32141]
[1745244368371,10.92355,1614.9,1614.8,3.0829]
[1745244368570,9.03714,1615.1,1615.0,1.23836]
[1745244368870,1.23832,1615.1,1615.0,1.23833]
[1745244369068,3.2078,1615.4,1615.0,5.0]
[1745244369370,1.23818,1615.3,1615.1,1.23823]
[1745244369559,1.23818,1615.3,1615.2,3.3688]
[1745244369868,4.45668,1615.3,1615.2,3.3688]
[1745244370260,1.23834,1615.1,1615.0,1.23835]
[1745244370462,1.23833,1615.1,1614.9,4.591]
[1745244370668,1.23833,1615.1,1615.0,1.23836]
[1745244370870,1.23833,1615.1,1614.9,5.82938]
[1745244371058,1.23833,1615.1,1615.0,1.23836]
[1745244371259,1.23833,1615.1,1614.9,5.82938]
[1745244371464,6.4263,1615.2,1614.9,5.82938]
[1745244371771,1.23828,1615.1,1615.0,3.2817]
[1745244371974,4.35638,1615.1,1615.0,3.2817]
[1745244373860,1.23842,1615.0,1614.8,1.23848]
[1745244374060,9.8092,1615.2,1614.9,4.52014]
[1745244374271,1.23836,1615.0,1614.9,4.52014]
[1745244374675,1.23828,1615.1,1614.9,4.52014]
[1745244374874,4.47608,1615.1,1615.0,3.0624]
[1745244375869,6.33354,1615.1,1614.7,40.80930607]
[1745244376176,4.44631,1614.8,1614.7,0.00930607]
[1745244376480,10.53564976,1614.8,1614.7,0.00930607]
[1745244376668,15.53564976,1614.8,1614.7,0.00930607]
[1745244377176,21.98184976,1614.8,1614.7,0.00930607]
[1745244377375,16.98184976,1614.8,1614.7,0.00930607]
[1745244377576,16.87651,1614.8,1614.7,0.00930607]
[1745244378278,13.66871,1614.8,1614.7,0.00930607]
[1745244378471,13.66871,1614.8,1614.7,3.28400607]
[1745244378874,16.87651,1614.8,1614.7,3.28400607]
[1745244379977,10.89251,1614.8,1614.7,3.28400607]
[1745244380369,10.89251,1614.8,1614.7,0.00930607]
[1745244380570,13.98641,1614.8,1614.7,0.00930607]
[1745244383081,1.23905,1614.1,1614.0,1.23909]
[1745244383282,1.23905,1614.1,1614.0,4.55591]
[1745244383477,1.23905,1614.1,1614.0,50.35591]
[1745244383873,1.23905,1614.1,1614.0,49.1168]
[1745244384076,1.23905,1614.1,1614.0,45.35593]
[1745244384278,3.21710607,1614.2,1614.0,45.35593]
[1745244384470,4.45614607,1614.2,1614.1,3.2566]
[1745244386081,4.45614607,1614.2,1614.1,4.49565]
[1745244386381,4.45614607,1614.2,1614.1,3.2566]
[1745244386581,4.45614607,1614.2,1614.1,4.49565]
[1745244387179,4.45614607,1614.2,1614.1,3.2566]
[1745244387382,4.45614607,1614.2,1614.1,4.49565]
[1745244387979,1.24834607,1614.2,1614.1,4.49565]
[1745244388581,1.24834607,1614.2,1614.1,3.2566]
[1745244389883,4.45614607,1614.2,1614.1,3.2566]
[1745244390080,1.23905,1614.1,1614.0,40.8]
[1745244390280,4.28325,1614.1,1614.0,43.9192]
[1745244390481,4.28325,1614.1,1614.0,3.1192]
[1745244390683,4.28325,1614.1,1614.0,4.35833]
[1745244390987,4.28325,1614.1,1614.0,3.1192]
[1745244393886,4.28325,1614.1,1613.9,40.80930607]
[1745244393887,1.23913,1614.0,1613.9,0.00930607]
[1745244394083,14.02056172,1614.0,1613.9,0.00930607]
[1745244394389,19.02056172,1614.0,1613.9,0.00930607]
[1745244394882,14.02056172,1614.0,1613.9,6.07e-06]
[1745244395084,13.91533,1614.0,1613.9,6.07e-06]
[1745244395584,13.91533,1614.0,1613.9,3.21020607]
[1745244396781,10.70753,1614.0,1613.9,4.44940607]
[1745244396981,1.23913,1614.0,1613.9,4.44940607]
[1745244397177,13.04820607,1614.2,1613.9,3.21020607]
[1745244397377,14.28719607,1614.2,1614.1,1.23905]
[1745244397583,7.67889607,1614.2,1614.1,1.23905]
[1745244397790,1.23905,1614.1,1614.0,3.2508]
[1745244398185,4.49425,1614.1,1614.0,3.2508]
[1745244398691,3.2552,1614.1,1614.0,3.2508]
[1745244398891,1.23905,1614.1,1614.0,4.48986]
[1745244399791,1.23905,1614.1,1614.0,3.2508]
[1745244399993,1.23905,1614.1,1614.0,4.48993]
[1745244400491,1.23905,1614.1,1614.0,3.2508]
[1745244400693,4.29295,1614.1,1614.0,3.2508]
[1745244401294,1.23905,1614.1,1614.0,3.2508]
[1745244402287,1.23905,1614.1,1614.0,4.48993]
[1745244402594,0.00930607,1614.2,1614.1,1.23905]
[1745244402994,0.00930607,1614.2,1614.1,4.45135]
[1745244405986,4.38476,1614.5,1614.4,1.23882]
[1745244406191,3.146,1614.5,1614.4,1.23882]
[1745244407189,3.146,1614.5,1614.3,3.0844]
[1745244407190,0.00930607,1614.6,1614.5,1.23874]
[1745244407585,0.00930607,1614.6,1614.4,3.0844]
[1745244407586,0.00930607,1614.6,1614.4,4.32317]
[1745244407787,1.24799607,1614.6,1614.4,4.32322]
[1745244407987,0.00930607,1614.6,1614.5,4.45264]
[1745244408586,4.32247607,1614.6,1614.5,4.45264]
[1745244408791,3.08380607,1614.6,1614.5,4.45264]
[1745244409002,4.32247607,1614.6,1614.5,3.2139]
[1745244409291,3.08380607,1614.6,1614.5,4.45264]
[1745244409482,4.32247607,1614.6,1614.5,3.2139]
[1745244409988,4.32247607,1614.6,1614.5,4.45264]
[1745244410392,3.08380607,1614.6,1614.5,4.45264]
[1745244411894,9.1918,1615.1,1614.6,3.09655]
[1745244412196,1.23838,1615.0,1614.9,1.23841]
[1745244412595,4.55168,1615.0,1614.9,42.03841]
[1745244412897,9.1918,1615.1,1614.9,40.8]
[1745244413093,10.43944607,1615.1,1615.0,3.0691]
[1745244413393,10.43944607,1615.1,1615.0,4.30746]
[1745244413593,10.43944607,1615.1,1615.0,3.0691]
[1745244413796,0.00930607,1615.1,1615.0,4.30746]
[1745244414394,1.23836,1615.0,1614.9,40.8]
[1745244414594,1.23844,1614.9,1614.8,0.00930607]
[1745244414791,10.96964,1614.9,1614.8,0.00930607]
[1745244415098,17.11564,1614.9,1614.8,0.00930607]
[1745244417095,17.11564,1614.9,1614.2,1.23893]
[1745244417096,3.09667,1614.7,1614.2,1.23893]
[1745244417292,3.09667,1614.7,1614.3,3.2675]
[1745244417293,1.23888,1614.4,1614.3,3.2675]
[1745244417799,4.46538,1614.4,1614.3,3.2675]
[1745244417999,4.46538,1614.4,1614.3,4.5064]
[1745244418000,4.46532,1614.4,1614.3,4.5064]
[1745244418196,10.61132,1614.4,1614.3,3.2675]
[1745244418694,10.61132,1614.4,1614.2,40.80930607]
[1745244418695,1.2389,1614.3,1614.2,40.80930607]
[1745244418900,10.8008,1614.3,1614.2,0.00930607]
[1745244419297,16.9468,1614.3,1614.2,0.00930607]
[1745244420396,16.9468,1614.3,1613.8,3.2286]
[1745244420697,3.2078,1614.1,1613.8,4.46783]
[1745244420898,3.2078,1614.1,1613.8,4.46782]
[1745244421095,10.59288,1614.1,1613.9,3.2286]
[1745244421295,1.23913,1614.0,1613.9,4.46775]
[1745244421800,1.2392,1613.9,1613.8,0.00621624]
[1745244422001,4.5166,1613.9,1613.8,44.03481624]
[1745244422200,3.2774,1613.9,1613.8,45.27409624]
[1745244422599,4.5166,1613.9,1613.8,44.03481624]
[1745244422998,4.5166,1613.9,1613.8,45.27409624]
[1745244423196,10.6626,1613.9,1613.8,44.03481624]
[1745244423402,9.4234,1613.9,1613.8,49.03481624]
[1745244423593,6.146,1613.9,1613.8,50.27409624]
[1745244424304,4.45621607,1614.1,1613.9,1.2392]
[1745244424603,4.45621607,1614.1,1614.0,3.1191]
[1745244424999,1.24841607,1614.1,1614.0,3.1191]
[1745244425201,6.15530607,1614.1,1614.0,7.56603]
[1745244425507,6.15530607,1614.1,1614.0,4.35823]
[1745244425698,6.15530607,1614.1,1614.0,48.36603]
[1745244425894,3.2078,1614.7,1614.0,59.25003]
[1745244426095,6.3449,1614.7,1614.6,1.23867]
[1745244426296,1.23869,1614.6,1614.3,5.884]
[1745244426496,1.23869,1614.6,1614.5,1.23874]
[1745244426805,4.37575,1614.7,1614.5,1.23874]
[1745244427004,4.38505607,1614.7,1614.6,3.1167]
[1745244428399,7.59285607,1614.7,1614.6,3.1167]
[1745244428798,1.23878,1614.5,1614.4,3.1167]
[1745244428996,4.44658,1614.5,1614.4,3.1167]
[1745244429197,1.23882,1614.4,1614.3,5.884]
[1745244429499,4.47213,1614.6,1614.4,1.23882]
[1745244429705,4.47213,1614.6,1614.4,4.24702]
[1745244429906,1.23874,1614.5,1614.4,4.24702]
[1745244430096,1.23874,1614.5,1614.4,1.23882]
[1745244431718,3.136,1614.6,1614.3,1.23883]
[1745244431903,6.30485,1614.5,1614.1,6.1728]
[1745244432199,1.23903,1614.2,1614.0,40.8]
[1745244432401,3.2078,1614.3,1614.1,1.23905]
[1745244432605,4.55573,1614.3,1614.2,1.23897]
[1745244432993,1.23905,1614.1,1614.0,42.0391]
[1745244433197,1.23903,1614.2,1614.1,1.23905]
[1745244433606,6.4681,1614.3,1614.0,40.8]
[1745244433806,1.239,1614.2,1614.1,1.23902]
[1745244434307,6.4681,1614.3,1614.0,40.8]
[1745244434308,9.6759,1614.3,1614.0,40.8]
[1745244434604,4.39033,1614.2,1614.1,1.23905]
[1745244435005,3.1513,1614.2,1614.0,42.03906]
[1745244435202,1.23905,1614.1,1614.0,40.8]
[1745244435799,1.23905,1614.1,1614.0,42.03913]
[1745244436502,1.23905,1614.1,1614.0,42.03908]
[1745244436700,1.23905,1614.1,1614.0,40.8]
[1745244436899,1.23905,1614.1,1614.0,42.03913]
[1745244437409,4.55576,1614.3,1614.2,1.23897]
[1745244437808,7.63057,1614.5,1614.4,1.23882]
[1745244438200,1.23882,1614.4,1614.3,1.23884]
[1745244438406,7.6306,1614.5,1614.4,1.23882]
[1745244438809,6.3918,1614.5,1614.4,1.23882]
[1745244439013,7.63054,1614.5,1614.4,1.23882]
[1745244439307,1.2389,1614.3,1614.2,7.75754]
[1745244439497,1.23884,1614.4,1614.3,1.23885]
[1745244439701,7.6306,1614.5,1614.4,1.23882]
[1745244439901,1.23883,1614.4,1614.3,1.23884]
[1745244440196,1.23887,1614.4,1614.3,1.23888]
[1745244440401,4.29407,1614.4,1614.3,1.23888]
[1745244440609,3.2078,1614.5,1614.4,1.23882]
[1745244440810,4.44654,1614.5,1614.4,1.23882]
[1745244441009,3.2078,1614.5,1614.4,1.23882]
[1745244441306,1.23872,1614.6,1614.4,1.23876]
[1745244441504,5.99330607,1614.7,1614.6,1.23867]
[1745244441707,1.23869,1614.6,1614.5,1.23874]
[1745244441905,4.38454607,1614.7,1614.6,1.23867]
[1745244442105,1.23867,1614.6,1614.5,1.23868]
[1745244442406,4.38451607,1614.7,1614.5,1.23868]
[1745244442710,4.38453607,1614.7,1614.6,1.23867]
[1745244442906,1.23867,1614.6,1614.3,3.2078]
[1745244443104,1.23867,1614.6,1614.5,1.23874]
[1745244443304,1.23871,1614.6,1614.4,1.23876]
[1745244443504,4.38454607,1614.7,1614.6,1.23867]
[1745244443804,0.00930607,1614.7,1614.6,1.23867]
[1745244444011,17.48211906,1615.5,1615.4,1.23805]
[1745244444211,18.72010906,1615.5,1615.1,10.88736]
[1745244444407,18.72010906,1615.5,1615.3,1.23806]
[1745244444707,20.59111906,1615.5,1615.2,42.03815]
[1745244444906,4.44593,1615.3,1615.2,40.8]
[1745244445110,1.23831,1615.1,1614.8,3.1437]
[1745244445307,7.42987,1615.2,1615.1,0.00930607]
[1745244445515,7.42987,1615.2,1615.1,40.80930607]
[1745244445908,12.42987,1615.2,1615.1,40.80930607]
[1745244446110,12.42987,1615.2,1615.1,0.00930607]
[1745244446511,7.42987,1615.2,1615.1,0.00930607]
[1745244446721,7.42987,1615.2,1615.1,40.80930607]
[1745244450810,7.42987,1615.2,1615.1,0.00930607]
[1745244452704,7.42987,1615.2,1615.1,1.24758607]
[1745244452908,7.42987,1615.2,1615.1,0.00930607]
[1745244453817,7.42987,1615.2,1615.1,4.26218607]
[1745244454021,3.0826,1615.2,1615.1,4.26218607]
[1745244454812,4.32081,1615.2,1615.1,3.02390607]
[1745244455017,1.23821,1615.2,1615.1,3.02390607]
[1745244455217,7.66801,1615.2,1615.1,3.02390607]
[1745244455414,7.66801,1615.2,1615.1,0.00930607]
[1745244455713,7.66801,1615.2,1615.1,1.24758607]
[1745244455920,6.4298,1615.2,1615.1,4.26218607]
[1745244456221,7.66801,1615.2,1615.1,3.02390607]
[1745244457210,6.3749,1615.3,1615.2,1.23821]
[1745244457613,3.1571,1615.4,1615.3,1.23813]